bitfinex/quotes_ETHUSD_20250827
["timestamp","ask_amount","ask_price","bid_price","bid_amount"]
[1756290930335,0.0012,4601.4,4601.3,0.7623]
[1756290930538,0.0012,4601.4,4601.3,3.04439885]
[1756290931020,0.0012,4601.4,4601.3,6.06613183]
[1756290931221,0.0012,4601.4,4601.3,6.04439885]
[1756290931422,0.0012,4601.4,4601.3,6.94474327]
[1756290933305,0.0012,4601.4,4601.3,7.60474327]
[1756290933705,1e-08,4601.4,4601.3,7.60474327]
[1756290933918,1e-08,4601.9,4601.4,5.83325161]
[1756290934106,1e-08,4601.9,4601.7,3.0]
[1756290934307,1e-08,4601.9,4601.8,6.24396271]
[1756290934640,1e-08,4601.9,4601.8,6.70416271]
[1756290936438,1e-08,4601.9,4601.8,6.79125171]
[1756290938508,0.00120001,4602.4,4602.3,2.83282663]
[1756290938811,0.00120001,4602.4,4602.3,6.44219885]
[1756290939011,0.00120001,4602.4,4602.3,7.20449885]
[1756290939213,0.00120001,4602.4,4602.3,7.29158885]
[1756290943865,0.00120001,4602.4,4602.3,6.83138885]
[1756290944064,0.00120001,4602.4,4602.3,7.29158885]
[1756290945851,0.00120001,4602.4,4602.3,6.52928885]
[1756290946042,0.30120001,4602.4,4602.3,6.52928885]
[1756290946237,0.30120001,4602.4,4602.3,5.86928885]
[1756290946852,0.00120001,4602.4,4602.3,5.86928885]
[1756290947057,0.17500001,4602.4,4602.3,2.86928885]
[1756290947260,0.17500001,4602.4,4602.3,2.28162663]
[1756290948330,0.62510001,4602.4,4602.3,0.1088]
[1756290948528,0.62510001,4602.4,4602.1,0.1088]
[1756290948767,0.17500001,4602.4,4602.1,2.28168676]
[1756290948963,0.4501,4602.3,4602.1,2.28168676]
[1756290949160,0.624,4602.2,4602.1,2.28168676]
[1756290950232,0.1766,4602.2,4602.1,2.28168676]
[1756290950456,0.00120001,4602.4,4602.3,2.17282663]
[1756290950862,0.31760001,4602.4,4602.3,2.17282663]
[1756290951376,0.62660001,4602.4,4602.1,0.1088]
[1756290951546,0.31760001,4602.4,4601.9,0.1088]
[1756290951735,0.00120001,4602.4,4602.3,2.28162663]
[1756290951936,0.62660001,4602.4,4602.3,0.1088]
[1756290952365,0.62660001,4602.4,4602.3,2.28162663]
[1756290952565,0.31750001,4602.4,4602.3,2.28162663]
[1756290954234,0.31750001,4602.4,4602.3,0.1088]
[1756290954235,0.62660001,4602.4,4602.3,0.1088]
[1756290955752,0.62660001,4602.4,4602.3,2.28162663]
[1756290956255,0.62660001,4602.4,4602.3,2.17282663]
[1756290956458,0.62660001,4602.4,4602.3,2.17382663]
[1756290956662,0.62660001,4602.4,4602.3,0.001]
[1756290957374,2.90817942,4602.4,4602.3,0.001]
[1756290957542,5.90817942,4602.4,4602.3,0.001]
[1756290957743,6.2053757,4602.4,4602.3,0.001]
[1756290958669,5.90817942,4602.4,4602.3,0.001]
[1756290959562,6.24827345,4602.4,4602.3,0.001]
[1756290960784,6.90827345,4602.4,4602.3,0.001]
[1756290960959,6.99541945,4602.4,4602.3,0.001]
[1756290961666,2.83301549,4601.9,4601.8,0.001]
[1756290961872,2.83325161,4601.4,4600.4,0.001]
[1756290962061,12.45025795,4601.4,4600.4,0.001]
[1756290962265,12.79041887,4601.4,4600.4,0.001]
[1756290962465,13.18678387,4601.4,4600.4,0.001]
[1756290963156,13.18598387,4601.4,4600.4,0.001]
[1756290963988,12.52598387,4601.4,4600.4,0.001]
[1756290964595,5.99381661,4601.4,4600.4,0.001]
[1756290965986,5.68461661,4601.4,4600.4,0.001]
[1756290966692,5.59745161,4601.4,4600.7,0.4283]
[1756290967118,5.59745161,4601.4,4600.4,2.17472208]
[1756290967323,5.90665161,4601.4,4600.4,0.001]
[1756290967990,5.59745161,4601.4,4600.4,2.6029793]
[1756290968184,5.59745161,4601.4,4600.4,0.4293]
[1756290969022,5.59745161,4601.4,4600.4,2.60302072]
[1756290969219,5.59745161,4601.4,4600.4,0.4293]
[1756290969656,5.90665161,4601.4,4600.4,0.001]
[1756290969812,6.20384789,4601.4,4600.4,0.001]
[1756290970141,6.63314789,4601.4,4600.4,0.001]
[1756290970307,5.91795161,4601.4,4600.4,0.001]
[1756290970509,12.21875795,4601.4,4600.4,0.001]
[1756290971214,12.52795795,4601.4,4600.4,0.001]
[1756290972949,20.48435422,4601.4,4600.4,0.001]
[1756290975049,20.48635422,4601.4,4600.4,0.001]
[1756290975473,2.17348779,4600.9,4600.4,0.001]
[1756290975770,11.47429413,4600.9,4600.4,0.001]
[1756290976066,12.75969413,4600.9,4600.4,0.001]
[1756290976266,12.75969413,4600.9,4600.8,1e-08]
[1756290976934,12.75969413,4600.9,4600.4,0.001]
[1756290976935,2.83367677,4600.5,4600.4,0.001]
[1756290977166,5.94247677,4600.5,4600.4,0.001]
[1756290977380,6.56787677,4600.5,4600.4,0.001]
[1756290978571,6.90810877,4600.5,4600.4,0.001]
[1756290980146,5.83372402,4600.4,4600.3,0.001]
[1756290980345,12.32292664,4600.4,4600.3,0.001]
[1756290980545,12.62572664,4600.4,4600.3,0.001]
[1756290980750,12.32853036,4600.4,4600.3,0.001]
[1756290980954,12.65093036,4600.4,4600.3,0.001]
[1756290981353,12.32853036,4600.4,4600.3,0.001]
[1756290981935,19.65013035,4600.4,4600.3,0.001]
[1756290982968,19.32773035,4600.4,4600.3,0.001]
[1756290984148,19.65013035,4600.4,4600.3,0.001]
[1756290984545,19.32773035,4600.4,4600.3,0.001]
[1756290985092,19.65013035,4600.4,4600.3,0.001]
[1756290986890,2.1739603,4599.9,4599.8,0.02]
[1756290987088,12.13476664,4599.9,4599.8,0.02]
[1756290987294,12.43756664,4599.9,4599.8,0.02]
[1756290987460,12.43676664,4599.9,4599.8,0.02]
[1756290988177,12.77703585,4599.9,4599.8,0.02]
[1756290990162,12.47423585,4599.9,4599.8,0.3286]
[1756290990500,12.47423585,4599.9,4599.8,0.02]
[1756290990685,12.64053585,4599.9,4599.8,0.02]
[1756290991999,12.64053585,4599.9,4599.8,0.021]
[1756290993297,13.39543213,4599.9,4599.8,0.021]
[1756290993500,20.39463212,4599.9,4599.8,0.021]
[1756290994296,3.66,4599.4,4598.8,0.021]
[1756290994593,11.47523935,4598.9,4598.8,0.021]
[1756290994800,11.77803935,4598.9,4598.8,0.021]
[1756290994965,11.47523935,4598.9,4598.8,0.021]
[1756290995497,11.77803935,4598.9,4598.8,0.021]
[1756290996772,11.47523935,4598.9,4598.8,0.021]
[1756290998813,11.47523935,4598.9,4598.8,0.3296]
[1756290998998,11.81557763,4598.9,4598.8,0.021]
[1756290999196,19.77757762,4598.9,4598.8,0.021]
[1756291000015,20.09997762,4598.9,4598.8,0.021]
[1756291000401,19.77757762,4598.9,4598.8,0.021]
[1756291002007,19.47477762,4598.9,4598.8,0.021]
[1756291002209,13.28277128,4598.9,4598.8,0.021]
[1756291002521,19.47477762,4598.9,4598.8,0.021]
[1756291003683,19.64107762,4598.9,4598.8,0.021]
[1756291004617,20.07977762,4598.9,4598.8,0.021]
[1756291005018,20.8346739,4598.9,4598.8,0.021]
[1756291005186,20.3769739,4598.9,4598.8,0.021]
[1756291007092,19.91347762,4598.9,4598.8,0.021]
[1756291007297,20.21627762,4598.9,4598.8,0.021]
[1756291008194,19.57313934,4598.9,4598.8,0.021]
[1756291008510,13.381133,4598.9,4598.8,0.7683]
[1756291009336,13.381133,4598.9,4598.8,0.3296]
[1756291009838,13.381133,4598.9,4598.8,0.7683]
[1756291010005,12.282433,4598.9,4598.8,0.7683]
[1756291011606,12.62276387,4598.9,4598.8,0.7683]
[1756291012099,12.62196387,4598.9,4598.8,0.7683]
[1756291012721,12.62196387,4598.9,4598.8,0.3296]
[1756291013031,12.62196387,4598.9,4598.8,0.021]
[1756291015128,12.62196387,4598.9,4598.8,0.7595]
[1756291015129,18.81397021,4598.9,4598.8,0.7595]
[1756291015319,18.47363934,4598.9,4598.8,0.7595]
[1756291017099,18.47363934,4598.9,4598.8,0.021]
[1756291017429,19.31663934,4598.9,4598.8,0.021]
[1756291018241,2.17490593,4597.9,4597.8,0.02]
[1756291018604,2.28370593,4597.9,4597.8,0.7585]
[1756291019432,5.6240774,4597.9,4597.8,0.7585]
[1756291021143,5.6240774,4597.9,4597.8,0.3114]
[1756291021545,5.6240774,4597.9,4597.8,0.02]
[1756291021546,13.46627739,4597.9,4597.8,0.02]
[1756291021707,14.20457367,4597.9,4597.8,0.02]
[1756291022103,14.67167367,4597.9,4597.8,0.02]
[1756291022333,13.93337739,4597.9,4597.8,0.02]
[1756291022830,13.93337739,4597.9,4597.8,1e-08]
[1756291023031,14.37447739,4597.9,4597.8,1e-08]
[1756291023735,13.93337739,4597.9,4597.8,1e-08]
[1756291023932,14.37447739,4597.9,4597.8,1e-08]
[1756291024257,13.93337739,4597.9,4597.8,1e-08]
[1756291024945,13.59300592,4597.9,4597.8,1e-08]
[1756291026367,14.03410592,4597.9,4597.8,1e-08]
[1756291026767,13.59300592,4597.9,4597.8,1e-08]
[1756291026931,14.03410592,4597.9,4597.8,1e-08]
[1756291027133,2.17537905,4596.9,4596.8,0.02]
[1756291027452,5.17537905,4596.9,4596.8,0.02]
[1756291027763,5.28417905,4596.9,4596.8,0.02]
[1756291028064,5.28417905,4596.9,4596.8,0.3114]
[1756291028367,5.62465832,4596.9,4596.8,0.7585]
[1756291029769,5.62465832,4596.9,4596.8,0.3114]
[1756291031174,6.46765832,4596.9,4596.8,0.02]
[1756291031342,5.62465832,4596.9,4596.8,0.7585]
[1756291031746,5.62465832,4596.9,4596.8,0.7595]
[1756291033945,5.62465832,4596.9,4596.8,0.3124]
[1756291034171,5.62465832,4596.9,4596.8,0.021]
[1756291034349,6.28465832,4596.9,4596.8,0.021]
[1756291034554,6.46765832,4596.9,4596.8,0.021]
[1756291034783,13.46685831,4596.9,4596.8,0.021]
[1756291034983,13.46685831,4596.9,4595.8,0.02]
[1756291034984,11.36785873,4595.9,4595.8,0.02]
[1756291035286,5.28465239,4595.9,4595.8,0.02]
[1756291035482,5.28465239,4595.9,4595.8,0.3114]
[1756291035682,5.28465239,4595.9,4595.8,0.7585]
[1756291036351,5.28465239,4595.9,4595.8,0.3114]
[1756291036563,5.28385239,4595.9,4595.8,0.3114]
[1756291036802,5.28385239,4595.9,4595.8,0.7585]
[1756291037692,11.47585873,4595.9,4595.8,0.02]
[1756291037857,11.47585873,4595.9,4595.8,0.7585]
[1756291038062,0.99504461,4595.9,4595.8,0.7585]
[1756291038259,0.44934661,4595.9,4595.8,2.93439973]
[1756291038484,0.1088,4595.9,4595.8,3.44543871]
[1756291038657,0.1088,4595.9,4595.8,0.7585]
[1756291038858,0.1088,4595.9,4595.8,2.93439973]
[1756291039278,0.1088,4595.9,4595.8,0.7585]
[1756291039458,0.1088,4595.9,4595.8,1.26954687]
[1756291040153,0.34049311,4597.3,4595.9,2.17581998]
[1756291040376,0.1088,4596.1,4596.0,0.4369]
[1756291040557,0.1088,4596.1,4596.0,2.90120504]
[1756291042173,0.1088,4596.1,4596.0,0.7254]
[1756291042691,0.1088,4596.1,4596.0,2.90120504]
[1756291042989,0.1088,4596.1,4596.0,3.19332554]
[1756291043488,0.1088,4596.1,4596.0,1.0175205]
[1756291043895,0.1088,4596.1,4596.0,2.90120504]
[1756291044263,0.1088,4596.1,4596.0,0.7254]
[1756291045909,6.19200634,4596.8,4596.0,0.2885]
[1756291046082,6.99919999,4597.2,4596.1,0.4369]
[1756291046283,0.2885,4596.7,4596.1,2.90476699]
[1756291046598,0.2885,4596.7,4596.6,0.2885]
[1756291046912,2.4639737,4596.7,4596.6,0.2885]
[1756291047310,0.5928,4596.7,4595.8,0.02]
[1756291047491,2.17559616,4596.5,4595.9,0.20363461]
[1756291047685,0.2885,4596.7,4596.4,0.2885]
[1756291047883,9.17444844,4597.2,4596.5,0.4369]
[1756291047884,6.99919999,4597.2,4596.5,0.4369]
[1756291048088,7.65342199,4597.2,4597.1,0.2885]
[1756291048290,10.65342199,4597.2,4597.1,0.2885]
[1756291049210,10.65342199,4597.2,4597.1,0.7254]
[1756291050080,12.82865909,4597.2,4597.1,0.2885]
[1756291050304,3.0,4597.1,4595.9,0.4369]
[1756291050508,3.0,4597.1,4596.0,0.20367876]
[1756291050509,2.17543049,4596.8,4596.0,0.20367876]
[1756291050714,2.17543049,4596.8,4595.9,0.4369]
[1756291050715,2.17556453,4596.6,4596.1,0.20367876]
[1756291051013,5.61887002,4597.0,4595.9,0.4369]
[1756291051313,0.4369,4596.7,4596.5,0.2885]
[1756291051678,0.4369,4596.7,4596.5,0.7254]
[1756291052011,2.17724176,4597.2,4596.6,0.4369]
[1756291052196,2.17542782,4596.8,4596.6,0.4369]
[1756291052406,2.17552111,4596.6,4596.1,0.20369288]
[1756291052609,2.17561418,4596.5,4595.8,0.021]
[1756291052790,2.17561418,4596.5,4595.9,0.2036949]
[1756291052992,2.17561418,4596.5,4595.8,0.021]
[1756291053323,2.17561418,4596.5,4595.9,0.20370382]
[1756291053530,2.17561418,4596.5,4595.8,0.28438393]
[1756291053724,2.17553321,4596.6,4595.9,0.20370543]
[1756291053897,2.17553321,4596.6,4595.8,2.46026372]
[1756291054098,2.17556868,4596.5,4595.9,0.20370543]
[1756291054303,2.17562397,4596.4,4595.8,0.28438393]
[1756291054503,2.17566382,4596.3,4595.9,0.20370707]
[1756291054706,2.17566382,4596.3,4595.8,0.28438393]
[1756291054911,2.17582817,4596.0,4595.8,0.021]
[1756291055108,5.48015239,4595.9,4595.8,0.021]
[1756291055432,5.92365239,4595.9,4595.8,0.021]
[1756291055590,0.3043,4595.9,4595.8,0.021]
[1756291056006,3.4131,4595.9,4595.8,0.021]
[1756291056527,0.1088,4595.9,4595.8,0.3095]
[1756291056693,0.1088,4595.9,4595.8,1.03863992]
[1756291056891,0.1088,4595.9,4595.8,2.92229973]
[1756291057311,0.1088,4595.9,4595.8,0.7464]
[1756291057587,0.1088,4595.9,4595.8,2.92229973]
[1756291057809,0.1088,4595.9,4595.8,3.14773452]
[1756291058017,0.1088,4595.9,4595.8,3.65834281]
[1756291058199,0.1088,4595.9,4595.8,0.5131758]
[1756291058504,0.4131,4595.9,4595.8,0.021]
[1756291058705,3.03245239,4595.9,4595.8,0.021]
[1756291058890,0.1088,4595.9,4595.8,0.021]
[1756291059088,0.1088,4595.9,4595.8,0.7464]
[1756291059292,0.763208,4595.9,4595.8,2.92229014]
[1756291059492,0.1088,4595.9,4595.8,3.43211595]
[1756291059844,0.4131,4595.9,4595.8,0.021]
[1756291060042,0.1088,4595.9,4595.8,0.3095]
[1756291060422,0.8566,4595.9,4595.8,0.021]
[1756291060628,6.03245239,4595.9,4595.8,0.021]
[1756291060925,6.03165239,4595.9,4595.8,0.021]
[1756291061129,6.46855239,4595.9,4595.8,0.021]
[1756291062443,6.02505239,4595.9,4595.8,0.021]
[1756291063359,6.46855239,4595.9,4595.8,0.021]
[1756291064040,6.02505239,4595.9,4595.8,0.021]
[1756291065532,3.5449,4595.9,4595.8,0.3095]
[1756291065949,3.8492,4595.9,4595.8,0.021]
[1756291066455,6.02505239,4595.9,4595.8,0.021]
[1756291066959,6.46855239,4595.9,4595.8,0.021]
[1756291067639,6.02505239,4595.9,4595.8,0.021]
[1756291067828,5.72075239,4595.9,4595.8,0.021]
[1756291068035,6.02505239,4595.9,4595.8,0.021]
[1756291068831,6.46855239,4595.9,4595.8,0.021]
[1756291069062,6.02505239,4595.9,4595.8,0.021]
[1756291070158,5.72075239,4595.9,4595.8,0.021]
[1756291070357,0.5449,4595.9,4595.8,0.7557]
[1756291070557,0.4369,4595.9,4595.8,0.7557]
[1756291070765,0.5457,4595.9,4595.8,3.13529786]
[1756291070921,0.1088,4595.9,4595.8,0.95939813]
[1756291071122,0.1088,4595.9,4595.8,3.44883181]
[1756291071360,0.1088,4595.9,4595.8,1.27293208]
[1756291071559,6.99919999,4596.3,4595.8,3.44883181]
[1756291071759,0.1088,4596.2,4595.9,2.60975239]
[1756291071923,0.1088,4596.2,4596.1,0.3008]
[1756291072128,0.1088,4596.2,4596.1,2.80754799]
[1756291072359,0.1088,4596.2,4596.1,3.24144799]
[1756291072560,0.1088,4596.4,4596.1,3.24143804]
[1756291072766,0.1088,4596.4,4596.2,0.63759718]
[1756291072963,0.1088,4596.4,4596.3,0.52784544]
[1756291073168,0.1088,4596.4,4596.3,0.93839718]
[1756291074275,0.1088,4596.4,4596.3,0.93832927]
[1756291074477,0.1088,4596.4,4596.3,0.50442927]
[1756291074777,3.0,4596.3,4595.8,0.021]
[1756291074986,5.59805239,4595.9,4595.8,0.021]
[1756291075693,6.04055239,4595.9,4595.8,0.021]
[1756291077288,3.4222,4595.9,4595.8,0.021]
[1756291077492,3.1088,4595.9,4595.8,0.021]
[1756291078261,5.59805239,4595.9,4595.8,0.021]
[1756291078468,3.1088,4595.9,4595.8,0.021]
[1756291078988,5.59805239,4595.9,4595.8,0.021]
[1756291079188,3.4222,4595.9,4595.8,0.021]
[1756291079556,5.59805239,4595.9,4595.8,0.021]
[1756291079759,6.04055239,4595.9,4595.8,0.021]
[1756291081299,6.69500139,4595.9,4595.8,0.021]
[1756291081664,7.35500139,4595.9,4595.8,0.021]
[1756291081996,7.69555782,4595.9,4595.8,0.021]
[1756291083576,7.98865615,4595.9,4595.8,0.021]
[1756291083980,7.98865615,4595.9,4594.8,0.02]
[1756291083981,3.66,4595.8,4594.8,0.02]
[1756291084191,11.47713226,4594.9,4594.8,0.02]
[1756291084500,5.28512592,4594.9,4594.8,0.02]
[1756291084874,6.24480292,4594.9,4594.8,0.02]
[1756291085496,12.43600926,4594.9,4594.8,0.02]
[1756291086669,5.80150292,4594.9,4594.8,0.02]
[1756291086873,6.24400292,4594.9,4594.8,0.02]
[1756291087866,6.24400292,4594.9,4594.8,0.021]
[1756291089514,5.48810292,4594.9,4594.8,0.021]
[1756291089701,3.312577,4594.9,4594.8,0.3218]
[1756291089899,5.80230292,4594.9,4594.8,0.021]
[1756291090626,3.312577,4594.9,4594.8,0.3218]
[1756291090776,5.48890292,4594.9,4594.8,0.3218]
[1756291091588,3.312577,4594.9,4594.8,0.7557]
[1756291091884,5.48890292,4594.9,4594.8,0.7557]
[1756291092697,3.312577,4594.9,4594.8,0.7557]
[1756291092908,5.48890292,4594.9,4594.8,0.7557]
[1756291093420,6.24480292,4594.9,4594.8,0.021]
[1756291093712,6.24480292,4594.9,4593.8,0.02]
[1756291093713,3.66,4594.8,4593.8,0.02]
[1756291093888,2.17679966,4593.9,4593.8,0.02]
[1756291094286,2.17679966,4593.9,4593.8,0.7547]
[1756291094500,5.94029566,4593.9,4593.8,0.7547]
[1756291095009,5.94029566,4593.9,4593.8,0.3208]
[1756291095184,5.94029566,4593.9,4593.8,0.02]
[1756291095384,6.25369566,4593.9,4593.8,0.02]
[1756291096395,5.94029566,4593.9,4593.8,0.02]
[1756291097396,6.25369566,4593.9,4593.8,0.02]
[1756291097599,6.69619566,4593.9,4593.8,0.02]
[1756291097795,6.04149966,4593.9,4593.8,0.02]
[1756291098712,6.04149966,4593.9,4593.8,0.3208]
[1756291098713,5.28559966,4593.9,4593.8,0.3208]
[1756291099092,5.28559966,4593.9,4593.8,0.02]
[1756291099322,5.59899966,4593.9,4593.8,0.02]
[1756291099487,6.04149966,4593.9,4593.8,0.02]
[1756291099692,5.59899966,4593.9,4593.8,0.02]
[1756291099898,5.28559966,4593.9,4593.8,0.02]
[1756291100117,5.59979966,4593.9,4593.8,0.02]
[1756291100338,12.239906,4593.9,4593.8,0.02]
[1756291100918,11.791806,4593.9,4593.8,0.02]
[1756291101146,12.239906,4593.9,4593.8,0.02]
[1756291101421,5.59979966,4593.9,4593.8,0.02]
[1756291101590,6.04789966,4593.9,4593.8,0.02]
[1756291102227,3.66,4593.8,4592.8,0.02]
[1756291102433,2.28607361,4592.9,4592.8,0.02]
[1756291102633,11.79227995,4592.9,4592.8,0.02]
[1756291102838,13.24115416,4592.9,4592.8,0.02]
[1756291103140,7.04914782,4592.9,4592.8,0.02]
[1756291103759,7.04914782,4592.9,4591.8,0.02605937]
[1756291103760,2.17770034,4592.0,4591.8,0.02605937]
[1756291103908,2.49190034,4592.0,4591.8,0.02605937]
[1756291104103,2.17770034,4592.0,4591.8,0.02605937]
[1756291104341,0.4481,4592.5,4591.8,0.02605937]
[1756291104342,3.0,4592.7,4591.9,0.7876]
[1756291104642,2.17731016,4592.9,4591.9,1.2259]
[1756291104842,3.0,4593.2,4591.9,0.7876]
[1756291104843,2.17765577,4592.1,4591.9,0.7876]
[1756291105061,2.49190034,4592.0,4591.9,0.499]
[1756291105265,6.60000034,4592.0,4591.9,0.499]
[1756291105472,5.49190034,4592.0,4591.9,0.499]
[1756291105622,6.15190034,4592.0,4591.9,0.499]
[1756291105820,6.60000034,4592.0,4591.9,0.499]
[1756291107145,5.83774777,4591.9,4591.8,0.02705937]
[1756291107359,0.66,4589.5,4586.8,0.02]
[1756291107654,2.17868549,4590.0,4588.2,0.4383]
[1756291107853,0.34085957,4590.7,4588.2,0.4383]
[1756291107854,0.4481,4590.6,4588.3,1.54762068]
[1756291108054,0.655479,4589.4,4588.4,0.4383]
[1756291108219,0.4481,4591.1,4589.3,0.2886]
[1756291108423,0.66,4590.5,4587.0,2.18007134]
[1756291108758,13.61608975,4591.4,4587.0,2.18007134]
[1756291108759,3.0,4590.3,4589.3,0.4383]
[1756291108963,3.0,4590.0,4589.3,0.4383]
[1756291109261,0.20271917,4590.2,4587.9,0.4383]
[1756291109262,2.17936268,4588.5,4587.9,0.4383]
[1756291109557,2.17919859,4588.9,4588.4,0.2886]
[1756291109762,0.20255703,4588.8,4588.5,0.4383]
[1756291109958,3.0,4589.1,4587.6,2.17978831]
[1756291109959,3.0,4589.4,4588.7,0.2886]
[1756291110167,0.20173116,4589.3,4588.7,0.2886]
[1756291110340,2.17916915,4589.0,4588.7,0.2886]
[1756291110543,3.0,4589.6,4588.7,0.2886]
[1756291110745,2.17913138,4589.0,4588.1,0.4383]
[1756291110959,3.0,4589.2,4588.1,0.4383]
[1756291110960,2.17903747,4589.2,4588.1,0.4383]
[1756291111267,2.17938353,4588.5,4587.8,0.02]
[1756291111463,16.61608975,4589.8,4587.8,0.02]
[1756291111464,2.17942693,4588.4,4588.0,50.586019]
[1756291111652,2.17955144,4588.1,4588.0,50.147719]
[1756291111856,0.66,4589.3,4588.0,50.874619]
[1756291112054,3.0,4589.0,4588.0,50.436319]
[1756291112253,3.66,4589.1,4588.0,50.147719]
[1756291112438,0.200798,4589.0,4588.0,50.147719]
[1756291112638,3.15375144,4588.1,4588.0,50.147719]
[1756291112833,6.15375144,4588.1,4588.0,50.147719]
[1756291113448,5.49375144,4588.1,4588.0,50.147719]
[1756291113971,5.60255144,4588.1,4588.0,50.147719]
[1756291114167,6.26255144,4588.1,4588.0,50.147719]
[1756291114465,6.60185144,4588.1,4588.0,47.37736099]
[1756291114670,6.80220068,4588.1,4588.0,47.37736099]
[1756291114870,2.83964646,4587.9,4587.8,1e-08]
[1756291115168,6.0399957,4587.9,4587.8,1e-08]
[1756291115468,6.8022957,4587.9,4587.8,1e-08]
[1756291116181,0.66,4587.8,4586.1,0.4383]
[1756291116332,2.18006595,4587.1,4586.1,0.4383]
[1756291116535,0.655575,4588.4,4587.7,0.2886]
[1756291116769,2.17921604,4588.9,4587.7,0.2886]
[1756291116969,0.4383,4588.9,4587.8,0.4383]
[1756291117271,0.3142,4587.9,4586.4,0.4383]
[1756291117576,2.18004824,4587.1,4585.8,0.02]
[1756291117759,6.15432165,4586.9,4585.8,0.02]
[1756291118265,7.04072165,4586.9,4585.8,0.02]
[1756291118772,6.59262165,4586.9,4585.8,0.02]
[1756291119152,3.0,4586.8,4585.8,0.02]
[1756291119470,2.18059704,4585.9,4585.8,0.02]
[1756291120073,0.99829283,4586.8,4585.8,0.02]
[1756291120074,3.0,4586.3,4585.8,0.02]
[1756291120379,2.18055591,4586.0,4585.8,0.3086]
[1756291120672,2.18045962,4586.2,4585.8,0.02]
[1756291120872,0.66,4585.7,4584.8,0.02]
[1756291121074,18.7971624,4584.9,4584.8,0.02]
[1756291121279,0.66,4584.7,4581.9,0.4383]
[1756291121462,0.4481,4584.7,4582.8,0.4583]
[1756291121774,3.66,4585.9,4584.6,0.2886]
[1756291122272,0.66,4585.6,4584.6,0.2886]
[1756291122480,3.0,4585.5,4584.6,0.2886]
[1756291122778,2.18092271,4585.3,4583.9,0.4383]
[1756291122971,3.66,4585.9,4583.9,0.4383]
[1756291123171,3.4481,4586.0,4583.9,0.4383]
[1756291123353,2.18083822,4585.4,4584.0,2.18149077]
[1756291123551,0.66,4585.2,4582.8,0.02]
[1756291123751,0.03408596,4583.1,4582.8,0.02]
[1756291124238,0.03408596,4583.1,4583.0,2.47057687]
[1756291124441,0.79638596,4583.1,4582.8,0.02]
[1756291124765,2.18202448,4582.9,4582.8,0.02]
[1756291124944,3.66,4582.9,4582.8,0.02]
[1756291125143,6.60432448,4582.9,4582.8,0.02]
[1756291125559,6.15622448,4582.9,4582.8,0.021]
[1756291125877,0.9742,4582.9,4582.8,0.021]
[1756291126188,3.60432448,4582.9,4582.8,0.021]
[1756291127044,2.84207209,4582.8,4581.8,0.02]
[1756291127260,2.18297714,4580.9,4580.0,0.4383]
[1756291127496,2.18297714,4580.9,4579.8,0.02]
[1756291127497,6.15717714,4580.9,4579.8,0.02]
[1756291127679,3.0,4580.9,4580.8,0.3086]
[1756291127881,2.18261627,4581.7,4580.8,0.7469]
[1756291128113,3.0,4581.8,4580.8,0.7469]
[1756291128411,5.18278654,4581.3,4580.8,0.02]
[1756291128609,0.4481,4581.7,4580.8,0.02]
[1756291128610,2.18284772,4581.2,4580.8,0.02]
[1756291128813,0.66,4581.9,4580.8,0.02]
[1756291129017,5.1825007,4581.9,4580.8,0.02]
[1756291129322,3.0,4582.5,4580.8,0.02]
[1756291129323,0.66,4581.8,4580.8,0.02]
[1756291129471,0.3142,4580.9,4580.8,0.02]
[1756291129818,0.4481,4582.3,4580.8,0.02]
[1756291130018,3.0,4582.7,4580.8,0.3346]
[1756291130300,0.65637,4583.1,4580.8,0.02]
[1756291130301,0.4521,4582.6,4580.8,0.02]
[1756291130466,1.1121,4582.6,4580.8,0.02]
[1756291130670,2.18267688,4581.6,4580.8,0.02]
[1756291130868,2.18297318,4581.0,4580.8,0.02]
[1756291131090,2.18297714,4580.9,4580.8,0.02]
[1756291131603,0.66,4581.5,4580.8,0.02]
[1756291131968,2.18278654,4581.3,4580.8,0.02]
[1756291132364,0.4457,4581.4,4580.8,0.02]
[1756291132571,2.18292264,4581.1,4580.8,0.02]
[1756291132801,0.4457,4581.4,4580.8,0.02]
[1756291133418,2.18166855,4583.7,4580.8,0.02]
[1756291133419,0.4521,4582.7,4581.3,0.3146]
[1756291133616,0.4457,4582.1,4581.3,0.3146]
[1756291133917,0.4457,4582.1,4580.8,0.02]
[1756291133918,0.292,4581.4,4580.8,0.02]
[1756291134411,2.18260523,4581.7,4580.8,0.02]
[1756291134571,2.18254834,4581.8,4580.8,0.02]
[1756291134768,0.1088,4580.9,4580.8,0.02]
[1756291135199,0.1088,4580.9,4580.8,0.3346]
[1756291135607,0.1088,4580.9,4580.8,0.7803]
[1756291136746,2.1820971,4582.8,4580.8,0.80213024]
[1756291137051,0.1088,4581.5,4581.4,2.1827389]
[1756291137338,0.1088,4581.8,4581.7,2.18259597]
[1756291137538,0.02,4582.8,4581.7,2.18259597]
[1756291137539,0.1088,4582.0,4581.9,2.1825007]
[1756291137722,0.02,4582.8,4582.3,2.18227127]
[1756291137931,0.1088,4582.4,4582.0,0.4457]
[1756291138124,0.1088,4582.4,4582.3,2.49691019]
[1756291138329,0.1288,4582.8,4582.4,2.18225177]
[1756291138501,0.1288,4582.8,4582.3,0.3146]
[1756291138713,0.1288,4582.8,4582.4,0.4457]
[1756291138913,0.1288,4582.8,4582.7,0.3146]
[1756291139129,0.1288,4582.8,4582.7,0.7603]
[1756291139739,0.02,4582.8,4582.7,2.94241971]
[1756291139959,0.02,4582.8,4582.7,3.05121971]
[1756291140343,0.02,4582.8,4582.7,3.0730409]
[1756291140830,0.02,4583.8,4583.7,2.18164365]